Cogmind - Beta 16.1 @@@ ROGUE MODE // 2026.04.26 @ 14:51:32 Player: Alien Result: Destroyed by G-67 Veteran with Field Laser Performance ------------- Evolutions (4) 2000 Regions Visited (13) 2600 Robots Destroyed (109) 545 Value Destroyed (3307) 3307 Prototype IDs (32) 640 Alien Tech Used (0) 0 Bonus (2112) 2112 TOTAL SCORE: 11204 Bonus ------- High Alert Combat Kills 347 Follower Combat Kills 765 Entered Garrisons 200 Entered DSFs 500 Aligned with FarCom 300 Cogmind --------- Core Integrity 0/850 Matter 272/300 Energy 550/550 System Corruption 32% Temperature Cool (-200) Movement Walking (260) Ox2 Location -6/Factory Parts ------- > --- POWER (2) -------- Micro Nuclear Core Light Angular Momentum Engine (fused) > --- PROPULSION (3) --- Carbon-fiber Leg Carbon-fiber Leg > --- UTILITY (7) ------ Advanced Cryofiber Web Improved Heat Sink Improved Heat Sink Large Storage Unit Energy Well Quantum Capacitor > --- WEAPON (3) ------- Force Rifle Ion Cannon Remote Datajack > --- INVENTORY (15) --- Light Deuterium Engine Improved Heat Sink Compact Battery (200) Advanced Weight Redist. System Advanced Targeting Computer Advanced Targeting Computer Advanced Reaction Control System Phase Shifter Improved Light Armor Plating Improved Light Armor Plating Improved Light Armor Plating System Shield Gatling Laser Gatling Laser Ion Cannon Peak State ------------ > --- POWER ------------ Reinforced Deuterium Engine Light Fission Core > --- PROPULSION ------- Flexi-carbon Leg Potential Leg Potential Leg > --- UTILITY ---------- Large Storage Unit Energy Well Enhanced Optical Array Advanced Targeting Computer Hardened Medium Armor Plating Hacking Suite Improved System Shield > --- WEAPON ----------- Heavy Proton Cannon Heavy Proton Cannon Scythe > --- INVENTORY -------- Reinforced Deuterium Engine Carbon-fiber Leg Carbon-fiber Leg Titanium Leg Improved Heat Sink Compact Battery Advanced Weight Redist. System Advanced Targeting Computer Advanced Targeting Computer Reaction Control System Hardened Medium Armor Plating System Shield Heavy Proton Cannon Ion Cannon Ion Cannon [Rating: 81] Favorites ----------- Power Reinforced Deuterium Engine Engine Reinforced Deuterium Engine Power Core Micro Nuclear Core Propulsion Potential Leg Treads Light Treads Leg Potential Leg Utility Advanced Targeting Computer Device Advanced Weight Redist. System Storage Large Storage Unit Processor Advanced Targeting Computer Hackware Hacking Suite Protection Improved Light Armor Plating Weapon Ion Cannon Energy Gun Shock Rifle Energy Cannon Ion Cannon Ballistic Gun Assault Rifle Launcher Rocket Launcher Special Weapon Remote Datajack Slashing Weapon Scythe Build | -11 -10 -9 -9 -9 -8 -8 -7 -7 -7 -7 -6 -6 -6 ------- Run | Yrd Mat Mat Min Exi Min Mat Fac Was Fac DSF Fac Gar Fac Slots Evolved 8 | . . 2 . . . 2 2 . . . 2 . . Power 1 | . . . . . . . . . . . 1 . . Propulsion 1 | . . 1 . . . . . . . . . . . Utility 5 | . . 1 . . . 2 1 . . . 1 . . Weapon 1 | . . . . . . . 1 . . . . . . Parts Attached 99 | 7 8 15 3 5 1 6 11 2 . 3 7 27 4 Power 16 | 1 . 4 . 1 . . 3 1 . . 1 4 1 Engine 13 | 1 . 4 . 1 . . 3 1 . . 1 2 . Core 3 | . . . . . . . . . . . . 2 1 Reactor . | . . . . . . . . . . . . . . Propulsion 22 | 2 2 6 . 2 . 1 . 1 . . 1 7 . Treads 2 | 2 . . . . . . . . . . . . . Leg 20 | . 2 6 . 2 . 1 . 1 . . 1 7 . Wheel . | . . . . . . . . . . . . . . Hover . | . . . . . . . . . . . . . . Flight . | . . . . . . . . . . . . . . Utility 36 | 2 2 2 2 . 1 4 5 . . . 4 13 1 Device 16 | 1 1 . 1 . 1 2 3 . . . 1 6 . Storage 4 | 1 1 . . . . 1 . . . . . 1 . Processor 5 | . . . . . . 1 1 . . . . 2 1 Hackware 3 | . . . . . . . 1 . . . 2 . . Protection 8 | . . 2 1 . . . . . . . 1 4 . Artifact . | . . . . . . . . . . . . . . Weapon 25 | 2 4 3 1 2 . 1 3 . . 3 1 3 2 Energy Gun 4 | . . . . . . . 1 . . . . 2 1 Energy Cannon 14 | . 4 2 . 2 . . 2 . . 3 1 . . Ballistic Gun 3 | 2 . . . . . . . . . . . 1 . Ballistic Cannon . | . . . . . . . . . . . . . . Launcher 2 | . . 1 1 . . . . . . . . . . Special Weapon 1 | . . . . . . . . . . . . . 1 Impact Weapon . | . . . . . . . . . . . . . . Slashing Weapon 1 | . . . . . . 1 . . . . . . . Piercing Weapon . | . . . . . . . . . . . . . . Special Melee Weapon . | . . . . . . . . . . . . . . Unidentified Prototypes 4 | . . 1 . . . . 1 . . 1 . . 1 Corrupted Parts 3 | . . . . . . . . . . . . 3 . System Corruption 13 | . . . . . . . . . . . . 13 . Parts Lost 34 | . . . . . . 1 . 1 . . 1 30 1 Power 7 | . . . . . . . . 1 . . 1 5 . Propulsion 8 | . . . . . . . . . . . . 7 1 Utility 12 | . . . . . . 1 . . . . . 11 . Weapon 7 | . . . . . . . . . . . . 7 . Highest Loss Streak 10 | . . . . . . 1 . 1 . . 1 10 1 To Critical Strikes . | . . . . . . . . . . . . . . Average Backups 16 | 4 12 14 15 14 14 13 20 24 25 24 23 16 15 Power 1 | . 1 1 2 1 2 2 2 2 2 2 1 . . Propulsion . | 3 2 1 1 1 1 1 1 . . . . . . Utility 9 | . 4 4 5 5 6 4 9 16 17 16 16 11 11 Weapon 5 | . 4 7 7 6 5 5 6 6 6 6 5 3 3 Tool/Special . | . . . . . . . . . . . . . . Unused Backups 49 | . 8 8 . . . 2 6 2 . 5 1 8 9 Power 5 | . 1 2 . . . . 2 . . . . . . Propulsion 5 | . 3 1 . . . 1 . . . . . . . Utility 30 | . 3 4 . . . 1 2 2 . 3 1 6 8 Weapon 9 | . 1 1 . . . . 2 . . 2 . 2 1 Tool/Special . | . . . . . . . . . . . . . . Average Slot Usage (%) 93 | . 99 99 100 100 100 95 92 91 92 91 92 87 82 Engine 9 | . 14 11 11 11 11 9 7 7 7 7 12 7 11 Core 1 | . . . . . . . . . . . . 4 1 Treads 2 | . 24 . . . . . . . . . . . . Leg 21 | . 3 33 33 33 33 27 23 22 23 23 20 18 20 Device 11 | . 14 11 11 11 11 20 9 7 7 7 12 10 25 Storage 10 | . 14 11 11 11 11 9 7 7 7 7 6 10 13 Processor 5 | . . . . . . 8 14 15 15 15 6 7 . Hackware 4 | . . . . . . . 6 7 7 7 11 7 . Protection 3 | . . 10 11 11 11 2 . . . . . 3 . Energy Cannon 14 | . 17 21 21 22 18 10 17 23 23 22 13 7 6 Ballistic Gun 1 | . 10 . . . . . . . . . . . . Slashing Weapon 2 | . . . . . . 3 4 . . . 5 3 . Peak Build Rating 81 | 7 11 21 22 40 40 48 57 58 58 70 77 81 69 Average Rating 45 | 5 9 17 20 26 39 45 55 57 58 67 75 62 59 On Entrance 40 | . 7 11 21 22 40 39 45 57 58 58 70 77 58 Avg Prop Armor Cover (%) 5 | 22 . . . 5 4 6 5 5 . 4 . 4 . Naked Turns . | . . . . . . . . . . . . . . Heaviest Build 92 | 14 34 40 43 48 48 68 73 73 68 80 84 92 62 Greatest Support 89 | 40 40 39 39 73 73 73 86 86 86 86 86 89 45 Greatest Overweight (x) 4 | 4 1 1 1 1 . . 1 1 . 1 . 4 1 Average Overweight (x) . | . . . . . . . . . . . . . 1 Largest Inventory Capacity 25 | 8 15 15 15 15 15 25 25 25 25 25 25 25 15 Average Capacity 17 | 7 12 15 15 15 15 17 24 25 25 25 25 17 15 Most Carried 25 | 7 15 15 15 15 15 15 25 25 25 25 25 25 15 Average Carried 16 | 5 12 14 14 14 15 14 20 24 25 24 23 16 14 Final Capacity 25 | 8 15 15 15 15 15 15 25 25 25 25 25 15 15 Final Carried 25 | 7 15 15 15 15 15 15 25 25 25 25 25 15 15 Class Distribution -------------------- 51% | Mutant 18% | Hacker-Mutant 16% | Scavenger-Mutant 8% | Gunner Dominant Class ---------------- Mutant | -10/Materials Mutant | -9/Materials Mutant | -9/Mines Mutant | -9/Exiles Mutant | -8/Mines Mutant | -8/Materials Mutant | -7/Factory Gunner | -7/Waste Gunner | -7/Factory Gunner | -7/DSF Hacker-Mutant | -6/Factory Hacker-Mutant | -6/Garrison Scavenger-Mutant | -6/Factory Resources | -11 -10 -9 -9 -9 -8 -8 -7 -7 -7 -7 -6 -6 -6 ----------- Run | Yrd Mat Mat Min Exi Min Mat Fac Was Fac DSF Fac Gar Fac Matter Collected 2266 | 262 351 221 91 . 60 69 195 163 . 30 22 749 53 Remotely . | . . . . . . . . . . . . . . Salvage Created 4287 | 46 434 1149 74 . 159 239 451 128 . . 94 1455 58 Parts 231 | 8 27 57 8 . 6 18 23 . . . 1 78 5 Haulers Intercepted 9 | . 1 3 . . . . 4 . . . 1 . . Recyclers Shooed 1 | 1 . . . . . . . . . . . . . Parts Field Recycled . | . . . . . . . . . . . . . . Retrieved Matter . | . . . . . . . . . . . . . . Parts Self-Destructed . | . . . . . . . . . . . . . . Prevented . | . . . . . . . . . . . . . . Parts Restored . | . . . . . . . . . . . . . . Kills | -11 -10 -9 -9 -9 -8 -8 -7 -7 -7 -7 -6 -6 -6 ------- Run | Yrd Mat Mat Min Exi Min Mat Fac Was Fac DSF Fac Gar Fac Combat Hostiles Destroyed 82 | . 8 21 5 . 3 10 5 1 . . . 28 1 Melee 5 | . . . . . . 2 . . . . . 3 . Guns 6 | . 2 . . . . . . . . . . 4 . Cannons 41 | . 4 12 . . 3 3 4 1 . . . 13 1 AOE 23 | . . 8 5 . . 5 . . . . . 5 . Classes Destroyed 15 | 1 5 3 . . 1 1 1 1 . . . 2 . Builder 3 | . . 2 . . . . . . . . . . 1 Tunneler 3 | 2 1 . . . . . . . . . . . . Hauler 9 | . 1 3 . . . . 4 . . . 1 . . Recycler 5 | . 1 4 . . . . . . . . . . . Operator 1 | . . . . . . 1 . . . . . . . Watcher 5 | . 3 1 . . . . . . . . . 1 . Swarmer 31 | . 5 10 3 . . 6 . . . . . 7 . Grunt 25 | . 3 6 2 . 2 2 4 . . . . 6 . Brawler 1 | . . . . . 1 . . . . . . . . Duelist 2 | . . 1 . . . 1 . . . . . . . Sentry 12 | . . 4 . . . 1 . . . . . 7 . Specialist 2 | . . . . . . . . . . . . 2 . Hunter 5 | . . . . . . . . . . . . 5 . Programmer 4 | . . . . . . . 1 . . . . 2 1 Compactor 1 | . . . . . . . . 1 . . . . . Best Kill Streak 7 | 2 4 7 3 . 3 4 2 1 . . 1 4 1 Combat Bots Only 6 | . 4 6 3 . 3 3 2 1 . . . 4 1 Max Kills in Single Turn 4 | 1 2 4 3 . 1 3 1 1 . . 1 2 1 Gunslinging . | . . . . . . . . . . . . . . Exploded 4 | . . 4 3 . . 3 . . . . . 2 . Melee 1 | . . . . . . 1 . . . . . 1 . Uniques/NPCs Destroyed . | . . . . . . . . . . . . . . Combat | -11 -10 -9 -9 -9 -8 -8 -7 -7 -7 -7 -6 -6 -6 -------- Run | Yrd Mat Mat Min Exi Min Mat Fac Was Fac DSF Fac Gar Fac Hostile Shots Fired 681 | . 35 68 8 . 21 91 34 1 . . 5 406 12 Missed 216 | . 8 13 4 . 8 41 12 . . . 3 125 2 Hits 465 | . 27 55 4 . 13 50 22 1 . . 2 281 10 Melee 5 | . . . . . . 4 . 1 . . . . . Projectile 460 | . 27 55 4 . 13 46 22 . . . 2 281 10 Critical Strikes 13 | . . 2 . . 1 1 2 . . . . 6 1 Damage Taken 6846 | . 266 600 74 . 190 767 255 65 . . 305 4144 180 Core 1180 | . 45 72 6 . 32 98 58 10 . . 91 695 73 Absorbed by Shields 25 | . . . . . . . . . . . . 25 . Regen/Repaired (Parts) 428 | . . . . . . 12 304 3 . . 109 . . Core Remaining (%) 85 | 100 82 . . . 72 82 . . . 90 . . . Volleys Fired 238 | 3 21 52 4 . 8 15 13 4 . 2 6 100 10 Largest 3 | 2 2 2 1 . 2 2 3 3 . 3 2 2 1 Hottest 180 | 40 136 136 33 . 120 120 180 180 . 180 162 162 60 Shots Fired 406 | 6 41 98 4 . 16 27 37 12 . 6 12 138 9 Gun 46 | 6 8 . . . . . . . . . . 32 . Cannon 335 | . 33 93 . . 16 24 37 12 . 6 12 93 9 Launcher 25 | . . 5 4 . . 3 . . . . . 13 . Special . | . . . . . . . . . . . . . . Kinetic 14 | 6 8 . . . . . . . . . . . . Thermal 273 | . 33 93 . . 16 24 37 12 . 6 . 43 9 Explosive 25 | . . 5 4 . . 3 . . . . . 13 . Electromagnetic 94 | . . . . . . . . . . . 12 82 . Robot Hit Streak 30 | 4 7 30 . . 8 22 23 6 . 12 14 13 10 Robot Miss Streak 5 | . 2 5 . . 4 1 2 1 . . 2 4 . Penetration Max . | . . . . . . . . . . . . . . Secondary Targets . | . . . . . . . . . . . . . . Capacitor 43 | . . . . . . . . . . . . 34 9 Shots Hit Robots 286 | 4 22 62 . . 10 26 34 8 . 6 10 95 9 Core Hits 168 | 3 15 32 5 . 5 15 13 2 . 2 1 71 4 Critical Kills 2 | . 1 1 . . . . . . . . . . . Critical Parts Destroyed . | . . . . . . . . . . . . . . Critical Strikes 8 | . 1 1 . . . . . . . . . 6 . Meltdown 2 | . 1 1 . . . . . . . . . . . Corrupt 3 | . . . . . . . . . . . . 3 . Sever 3 | . . . . . . . . . . . . 3 . Melee Attacks 68 | . . . . . . 6 17 . . . 5 40 . Impact . | . . . . . . . . . . . . . . Slashing 68 | . . . . . . 6 17 . . . 5 40 . Piercing . | . . . . . . . . . . . . . . Sneak Attacks 6 | . . . . . . 1 4 . . . . 1 . Combat Hostiles 1 | . . . . . . . . . . . . 1 . Follow-up Attacks . | . . . . . . . . . . . . . . Damage Inflicted 9008 | 47 438 1778 248 . 255 1035 1013 183 . 139 314 3327 231 Guns 473 | 44 42 . . . . . . . . . . 387 . Cannons 5495 | . 391 1306 . . 255 501 739 183 . 139 250 1508 223 Explosions 1971 | . . 379 248 . . 355 . . . . . 989 . Melee 882 | . . . . . . 155 258 . . . 64 405 . Ramming 187 | 3 5 93 . . . 24 16 . . . . 38 8 Kinetic 86 | 44 42 . . . . . . . . . . . . Thermal 4341 | . 391 1306 . . 255 501 739 183 . 139 . 604 223 Explosive 1907 | . . 379 248 . . 355 . . . . . 925 . Electromagnetic 1605 | . . . . . . . . . . . 250 1355 . Impact . | . . . . . . . . . . . . . . Slashing 882 | . . . . . . 155 258 . . . 64 405 . Piercing . | . . . . . . . . . . . . . . Highest Corruption 32 | . . . . . . . 1 1 1 1 . 27 32 Average Corruption 16 | . . . . . . . 1 1 1 1 . 18 30 Corruption Purged . | . . . . . . . . . . . . . . Corruption Blocked . | . . . . . . . . . . . . . . Effects 116 | . . . . . . . . 2 . 4 . 90 20 Message Errors 26 | . . . . . . . . 1 . 1 . 18 6 Matter Fused 24 | . . . . . . . . . . . . 19 5 Heat Flow Errors 9 | . . . . . . . . . . . . 7 2 Energy Discharges 19 | . . . . . . . . 1 . 1 . 13 4 Parts Fused 3 | . . . . . . . . . . . . 2 1 Data Loss (minor) 14 | . . . . . . . . . . 2 . 11 1 Data Loss (major) 6 | . . . . . . . . . . . . 6 . Misfires 6 | . . . . . . . . . . . . 6 . Alerts 3 | . . . . . . . . . . . . 3 . Weapon Failures 6 | . . . . . . . . . . . . 5 1 Overload Shots . | . . . . . . . . . . . . . . Overflow Damage 217 | . . 5 . . . 112 32 . . . . 68 . Projectiles 29 | . . 1 . . . 19 . . . . . 9 . Explosions 85 | . . 4 . . . 41 . . . . . 40 . Melee 103 | . . . . . . 52 32 . . . . 19 . Knockbacks 3 | . 1 . . . . . 1 . . . . . 1 Impact 3 | . 1 . . . . . 1 . . . . . 1 Kinetic . | . . . . . . . . . . . . . . Secondary . | . . . . . . . . . . . . . . Self-Inflicted Damage 126 | . . 31 36 . . 5 . . . . . 54 . Shots 6 | . . 1 1 . . 1 . . . . . 3 . Rammed 4 | 1 3 . . . . . . . . . . . . Targets Rammed 31 | 1 3 13 . . . 2 2 . . . . 8 2 Kicked 27 | . . 13 . . . 2 2 . . . . 8 2 Crushed . | . . . . . . . . . . . . . . Highest Temperature 584 | . 324 349 . . 294 51 351 297 . 78 18 584 15 Average Temperature 138 | . 105 107 . . 161 20 142 172 . 44 5 174 15 Received Heat Transfer 1194 | . 66 174 15 . 135 243 120 . . . . 402 39 Effects 33 | . . 1 . . 2 . 2 . . . . 28 . Shutdowns 9 | . . . . . . . . . . . . 9 . Energy Bleed 4 | . . 1 . . . . 2 . . . . 1 . Interference 8 | . . . . . 2 . . . . . . 6 . Matter Decay 2 | . . . . . . . . . . . . 2 . Damage (minor) 3 | . . . . . . . . . . . . 3 . Damage (major) 6 | . . . . . . . . . . . . 6 . Damage (core) 1 | . . . . . . . . . . . . 1 . Siege Activations . | . . . . . . . . . . . . . . Martial Activations . | . . . . . . . . . . . . . . Shielding Activations . | . . . . . . . . . . . . . . Robots Disrupted . | . . . . . . . . . . . . . . Combat Hostiles . | . . . . . . . . . . . . . . Robots Corrupted 4 | . . . . . . . . . . . 1 3 . Combat Hostiles 3 | . . . . . . . . . . . . 3 . Parts Fried 9 | . . . . . . . . . . . . 9 . Impact Corruptions . | . . . . . . . . . . . . . . Robots Melted 4 | . 2 1 . . . . 1 . . . . . . Combat Hostiles 4 | . 2 1 . . . . 1 . . . . . . Parts Melted 18 | . 4 9 . . 1 . 3 . . . . . 1 Heat Transferred 7137 | . 703 2368 . . 407 814 1110 296 . 222 . 884 333 Parts Sabotaged . | . . . . . . . . . . . . . . Parts Stolen . | . . . . . . . . . . . . . . Parts Stripped . | . . . . . . . . . . . . . . Power Chain Reactions 1 | . . . . . . . . . . . . 1 . Alert | -11 -10 -9 -9 -9 -8 -8 -7 -7 -7 -7 -6 -6 -6 ------- Run | Yrd Mat Mat Min Exi Min Mat Fac Was Fac DSF Fac Gar Fac Maximum Alert Level 4 | . . 1 1 . . 2 1 . . 2 1 4 3 Low Security (%) 58 | 100 100 92 99 . 100 57 96 100 100 85 67 2 . Level 1 15 | . . 7 . . . 21 3 . . 5 32 32 . Level 2 13 | . . . . . . 20 . . . 8 . 28 66 Level 3 8 | . . . . . . . . . . . . 21 33 Level 4 4 | . . . . . . . . . . . . 15 . Level 5 . | . . . . . . . . . . . . . . High Security . | . . . . . . . . . . . . . . Max Security . | . . . . . . . . . . . . . . Sterilizations 1 | . . . . . . . . . . 1 . . . Peak Influence 1445 | 5 95 318 194 . 90 478 214 26 . 438 279 1445 758 Initial 758 | . . 22 76 . . 23 214 15 . 3 229 98 758 Average 304 | . 22 122 160 . 49 188 84 6 . 169 182 650 672 Influence Increases 4878 | 10 259 756 288 . 100 585 281 49 5 455 343 1707 40 Destroy 0b10 Robot/C 2020 | . 160 420 160 . 60 200 100 . . 180 140 580 20 Destroy 0b10 Robot/NC 155 | 10 30 50 . . . 5 20 . . 10 10 15 5 Destroy Leader 376 | . 48 108 30 . 10 40 28 . . 20 52 30 10 Allied During Kill 314 | . . . 20 . . . . . . 200 84 10 . Successful Hack 114 | . 5 6 . . . 21 45 . 5 . 13 14 5 Disable Machine 225 | . . 90 45 . . 15 . . . 15 . 60 . Anti-Garrison Action 700 | . . . . . . . . . . . . 700 . Destroy Structure 299 | . 1 37 18 . . 19 13 49 . 30 29 103 . Partial Spotted 75 | . . . . . . 30 15 . . . . 30 . Lose Combat Pursuer 600 | . 15 45 15 . 30 255 60 . . . 15 165 . Influence Decreases 4296 | 10 206 613 320 164 40 172 709 94 . 22 641 402 903 Entered New Map 1581 | . . 31 120 164 . 37 259 30 . 2 209 42 687 Time Decay 2010 | 10 206 432 180 . 40 125 450 59 . . 302 . 206 Lost Part 335 | . . . . . . 10 . 5 . . 10 300 10 Lost Ally 220 | . . . 20 . . . . . . 20 120 60 . Purge Threat 150 | . . 150 . . . . . . . . . . . Squads Dispatched 22 | . 1 3 . . . 5 7 . . 1 3 . 2 Investigation 5 | . 1 1 . . . 1 2 . . . . . . Extermination 4 | . . . . . . . 2 . . . 1 . 1 Reinforcement 8 | . . 2 . . . 4 . . . 1 1 . . Assault 1 | . . . . . . . . . . . . . 1 Garrison 4 | . . . . . . . 3 . . . 1 . . Intercept . | . . . . . . . . . . . . . . Searches Triggered . | . . . . . . . . . . . . . . Construction Impeded 1 | . . 1 . . . . . . . . . . . Haulers Reinforced 1 | . . . . . . . . . . . 1 . . Active Scanning Responses . | . . . . . . . . . . . . . . Cargo Convoy Interrupts . | . . . . . . . . . . . . . . Stealth | -11 -10 -9 -9 -9 -8 -8 -7 -7 -7 -7 -6 -6 -6 --------- Run | Yrd Mat Mat Min Exi Min Mat Fac Was Fac DSF Fac Gar Fac Distress Signals 4 | . . 1 . . . 2 . . . . 1 . . Communications Jammed . | . . . . . . . . . . . . . . Distress Signals . | . . . . . . . . . . . . . . Times Spotted 171 | . 15 30 8 . 5 36 6 7 . 4 10 44 6 Peak Tracking Total 15 | . 5 5 3 . 3 15 4 4 . 2 4 11 4 Tactical Retreats 19 | . 1 2 1 . 1 7 1 . . . 1 5 . Traps | -11 -10 -9 -9 -9 -8 -8 -7 -7 -7 -7 -6 -6 -6 ------- Run | Yrd Mat Mat Min Exi Min Mat Fac Was Fac DSF Fac Gar Fac Traps Triggered 15 | . . . . . . . 5 . . . 2 7 1 Indirectly . | . . . . . . . . . . . . . . Trap Hack Attempts . | . . . . . . . . . . . . . . Triggered . | . . . . . . . . . . . . . . Disarmed . | . . . . . . . . . . . . . . Reprogrammed . | . . . . . . . . . . . . . . Reused . | . . . . . . . . . . . . . . Traps Extracted . | . . . . . . . . . . . . . . Installed . | . . . . . . . . . . . . . . Triggered . | . . . . . . . . . . . . . . Machines | -11 -10 -9 -9 -9 -8 -8 -7 -7 -7 -7 -6 -6 -6 ---------- Run | Yrd Mat Mat Min Exi Min Mat Fac Was Fac DSF Fac Gar Fac Machines Disabled 16 | . . 7 3 . . 1 . . . 1 . 4 . Max in Single Turn 2 | . . 2 2 . . 1 . . . . . 1 . Garrison Access 3 | . . . . . . . 2 . . . 1 . . Machines Repaired . | . . . . . . . . . . . . . . Machines Dismantled . | . . . . . . . . . . . . . . Machines Sabotaged . | . . . . . . . . . . . . . . Overloaded Fab Kills . | . . . . . . . . . . . . . . Hacking | -11 -10 -9 -9 -9 -8 -8 -7 -7 -7 -7 -6 -6 -6 --------- Run | Yrd Mat Mat Min Exi Min Mat Fac Was Fac DSF Fac Gar Fac Machines Accessed 44 | . 5 6 . 3 . 5 11 . 1 . 8 2 3 Terminals 28 | . 4 5 . . . 3 7 . 1 . 3 2 3 Fabricators 1 | . . . . . . . . . . . 1 . . Repair Stations 5 | . . . . . . 1 2 . . . 2 . . Recycling Units 1 | . 1 . . . . . . . . . . . . Scanalyzers 2 | . . 1 . . . 1 . . . . . . . Garrison Access 4 | . . . . . . . 2 . . . 2 . . Total Hacks 150 | . 15 24 . 33 . 11 34 . 1 . 20 5 7 Successful 87 | . 3 9 . 33 . 4 20 . 1 . 13 3 1 Failed 62 | . 12 14 . . . 7 14 . . . 7 2 6 Catastrophic 8 | . 1 1 . . . 2 . . . . 2 . 2 Database Lockouts 1 | . . 1 . . . . . . . . . . . Manual 31 | . . 9 . 1 . 3 7 . . . 4 3 4 Terminals 79 | . 13 18 . . . 7 20 . 1 . 8 5 7 Fabricators 1 | . . . . . . . . . . . 1 . . Repair Stations 22 | . . . . . . 2 12 . . . 8 . . Recycling Units 2 | . 2 . . . . . . . . . . . . Scanalyzers 8 | . . 6 . . . 2 . . . . . . . Garrison Access 5 | . . . . . . . 2 . . . 3 . . Terminal Hacks 53 | . 2 4 . 33 . 2 6 . 1 . 3 2 . Record 32 | . . . . 32 . . . . . . . . . Robot Analysis 2 | . . . . . . 1 1 . . . . . . Prototype ID Bank 3 | . . 2 . . . . 1 . . . . . . Open DSF 2 | . . . . . . . . . 1 . 1 . . Branch Access Points 3 | . . . . . . 1 1 . . . 1 . . Emergency Access Points 1 | . . . . . . . . . . . . 1 . Terminal Index 1 | . . . . . . . 1 . . . . . . Repair Station Index 1 | . . . . . . . 1 . . . . . . Unreport Threat 1 | . . 1 . . . . . . . . . . . Hauler Manifests 1 | . 1 . . . . . . . . . . . . Zone Layout 4 | . 1 1 . . . . 1 . . . 1 . . Security Stations 1 | . . . . . . . . . . . . 1 . Proto ID Catalog 1 | . . . . 1 . . . . . . . . . Fabricator Hacks 1 | . . . . . . . . . . . 1 . . Network Status 1 | . . . . . . . . . . . 1 . . Repair Station Hacks 13 | . . . . . . . 8 . . . 5 . . Scan Component 7 | . . . . . . . 4 . . . 3 . . Repair 6 | . . . . . . . 4 . . . 2 . . Recycling Unit Hacks 1 | . 1 . . . . . . . . . . . . Process 1 | . 1 . . . . . . . . . . . . Scanalyzer 6 | . . 5 . . . 1 . . . . . . . Insert Component 1 | . . 1 . . . . . . . . . . . Analyze 1 | . . 1 . . . . . . . . . . . Retrieve Study 4 | . . 3 . . . 1 . . . . . . . Garrison Access Hacks 4 | . . . . . . . 2 . . . 2 . . Unlock Access 1 | . . . . . . . . . . . 1 . . Seal Access 3 | . . . . . . . 2 . . . 1 . . Unauthorized Hacks 9 | . . . . . . 1 4 . . . 2 1 1 Terminals 8 | . . . . . . . 4 . . . 2 1 1 Botnet 8 | . . . . . . . 4 . . . 2 1 1 Fabricators . | . . . . . . . . . . . . . . Repair Stations 1 | . . . . . . 1 . . . . . . . Patch 1 | . . . . . . 1 . . . . . . . Recycling Units . | . . . . . . . . . . . . . . Scanalyzers . | . . . . . . . . . . . . . . Garrison Access . | . . . . . . . . . . . . . . Data Cores Recovered . | . . . . . . . . . . . . . . Used . | . . . . . . . . . . . . . . Hacking Detections 32 | . 5 6 . . . 3 9 . . . 4 2 3 Full Trace Events 2 | . 1 1 . . . . . . . . . . . Feedback Events . | . . . . . . . . . . . . . . Feedback Blocked . | . . . . . . . . . . . . . . Robot Schematics Acquired . | . . . . . . . . . . . . . . Robots Built . | . . . . . . . . . . . . . . Authchips . | . . . . . . . . . . . . . . Time . | . . . . . . . . . . . . . . Total Robot Build Rating . | . . . . . . . . . . . . . . Part Schematics Acquired 1 | . . 1 . . . . . . . . . . . Parts Built . | . . . . . . . . . . . . . . Authchips . | . . . . . . . . . . . . . . Time . | . . . . . . . . . . . . . . Total Part Build Rating . | . . . . . . . . . . . . . . Part Studies Acquired 4 | . . 3 . . . 1 . . . . . . . Parts Repaired 6 | . . . . . . . 4 . . . 2 . . Time 322 | . . . . . . . 121 . . . 201 . . Parts Recycled . | . . . . . . . . . . . . . . Recycled Matter 16 | . 16 . . . . . . . . . . . . Retrieved Matter . | . . . . . . . . . . . . . . Retrieved Components . | . . . . . . . . . . . . . . Parts Scanalyzed 1 | . . 1 . . . . . . . . . . . Part Schematics Acquired 1 | . . 1 . . . . . . . . . . . Parts Damaged . | . . . . . . . . . . . . . . Bothacking | -11 -10 -9 -9 -9 -8 -8 -7 -7 -7 -7 -6 -6 -6 ------------ Run | Yrd Mat Mat Min Exi Min Mat Fac Was Fac DSF Fac Gar Fac Used RIF Installer . | . . . . . . . . . . . . . . Robots Hacked . | . . . . . . . . . . . . . . Non-combat . | . . . . . . . . . . . . . . Combat . | . . . . . . . . . . . . . . Robot Hacks Applied . | . . . . . . . . . . . . . . Relay Couplers Released . | . . . . . . . . . . . . . . Fabnet Peak Effective % . | . . . . . . . . . . . . . . Robots Rewired 4 | . . . . . . . . . . . . 4 . Allies Hacked . | . . . . . . . . . . . . . . Hacks Repelled . | . . . . . . . . . . . . . . Allies | -11 -10 -9 -9 -9 -8 -8 -7 -7 -7 -7 -6 -6 -6 -------- Run | Yrd Mat Mat Min Exi Min Mat Fac Was Fac DSF Fac Gar Fac Total Allies 26 | . . . 3 . . . . 19 . . . 4 . Largest Group 19 | . . . 3 2 . . . 19 13 13 12 4 . Highest-Rated Group 475 | . . . 40 32 . . . 475 391 391 366 48 . Highest-Rated Ally 35 | . . . 16 16 . . . 35 35 35 35 12 . Initial Warlord ECA Mod 11 | . . . . . . . . . . . 9 9 11 Total Orders . | . . . . . . . . . . . . . . Ally Attacks 196 | . . . 19 . . . . 96 . 22 39 20 . Total Damage 6190 | . . . 198 . . . . 4148 . 899 720 225 . Kills 32 | . . . 3 . . . . 11 . 9 8 1 . Allies Corrupted . | . . . . . . . . . . . . . . Allies Melted . | . . . . . . . . . . . . . . Intel | -11 -10 -9 -9 -9 -8 -8 -7 -7 -7 -7 -6 -6 -6 ------- Run | Yrd Mat Mat Min Exi Min Mat Fac Was Fac DSF Fac Gar Fac Active Infowar (turns) 1301 | 16 380 . . . . . . . . . . 905 . Optics 905 | . . . . . . . . . . . . 905 . Seismic 396 | 16 380 . . . . . . . . . . . . Robot Analysis Total 2 | . . . . . . 1 1 . . . . . . Derelict Logs Recovered 1 | . . . 1 . . . . . . . . . . Drone Launches . | . . . . . . . . . . . . . . Drone Recoveries . | . . . . . . . . . . . . . . Exploration | -11 -10 -9 -9 -9 -8 -8 -7 -7 -7 -7 -6 -6 -6 ------------- Run | Yrd Mat Mat Min Exi Min Mat Fac Was Fac DSF Fac Gar Fac Turns Passed 9424 | 109 975 1316 361 535 114 330 1256 261 3 235 678 2828 423 Spaces Moved 5343 | 51 491 558 185 361 90 402 986 202 3 164 413 1230 207 Core 16 | 16 . . . . . . . . . . . . . Treads 460 | 35 425 . . . . . . . . . . . . Legs 4867 | . 66 558 185 361 90 402 986 202 3 164 413 1230 207 Wheels . | . . . . . . . . . . . . . . Hover . | . . . . . . . . . . . . . . Flight . | . . . . . . . . . . . . . . Fastest Speed 45 | 50 160 120 120 90 45 45 45 45 103 45 60 45 190 Average Speed 126 | 158 164 152 164 145 84 48 85 103 103 124 92 153 190 Slowest Speed 400 | 250 190 190 190 190 100 100 125 170 103 170 103 400 190 Overloaded Moves 894 | . . . . . 12 372 154 43 . 108 97 108 . Propulsion Burnouts . | . . . . . . . . . . . . . . Robots Hopped . | . . . . . . . . . . . . . . Potential Cave-ins 22 | . . . . . . . . . . . . 22 . Cave-ins Triggered 1 | . . . . . . . . . . . . 1 . Exploration Rate (%) 48 | 4 74 56 59 66 21 49 27 84 . 94 13 81 3 Regions Visited 13 Branch Regions 3 Pre-discovered Areas 1 | . . . . 1 . . . . . . . . . Known Exits Taken 3 | . . . 1 . . . . . 1 . 1 . . Unknown Exits Taken 6 | 1 1 1 . 1 1 1 . . . . . . . Scrap Searched 1 | . . . 1 . . . . . . . . . . Spaces Dug 122 | . . . 11 . . 11 13 . . . 3 84 . Terrain Destroyed 219 | . . 30 24 . . 26 13 . . . 3 123 . Melee 26 | . . . . . . 3 13 . . . 3 7 . Projectile 1 | . . . . . . 1 . . . . . . . AOE 192 | . . 30 24 . . 22 . . . . . 116 . Terrain Rammed . | . . . . . . . . . . . . . . Walls Destroyed . | . . . . . . . . . . . . . . Machines Disabled . | . . . . . . . . . . . . . . Actions | -11 -10 -9 -9 -9 -8 -8 -7 -7 -7 -7 -6 -6 -6 --------- Run | Yrd Mat Mat Min Exi Min Mat Fac Was Fac DSF Fac Gar Fac Total 7571 | 70 629 939 237 374 112 497 1354 247 2 194 688 1994 234 Wait 1184 | 2 65 259 39 . 12 53 272 30 . 11 247 189 5 Move 5330 | 51 490 557 184 360 89 401 986 201 2 163 413 1226 207 Hop . | . . . . . . . . . . . . . . Pick Up 119 | 7 23 15 1 3 . 2 24 5 . 5 5 28 1 Fast Attach 51 | 7 1 4 1 . . 3 6 1 . 3 . 20 5 Attach 37 | . 1 2 . 2 . 2 4 2 . . 4 20 . Detach 20 | . . . . . . 2 3 . . . 2 12 1 Swap 62 | . 6 14 5 3 2 8 12 1 . . 5 6 . Drop 94 | . 19 23 3 6 1 3 15 3 . 8 1 9 3 Fire 238 | 3 21 52 4 . 8 15 13 4 . 2 6 100 10 Melee 68 | . . . . . . 6 17 . . . 5 40 . Ram . | . . . . . . . . . . . . . . Kick 27 | . . 13 . . . 2 2 . . . . 8 2 Crush 3 | . 3 . . . . . . . . . . . . Escape Stasis 14 | . . . . . . . . . . . . 14 . Rewire 324 | . . . . . . . . . . 2 . 322 . Trap . | . . . . . . . . . . . . . . Miscellaneous . | . . . . . . . . . . . . . . Route ------- -11/Scrapyard -10/Materials (discovered 5 exits: *Mat x2 / [*Min x2] / [*Sub]) -9/Materials -9/Mines (discovered 3 exits: *Mat x2 / *Exi) -9/Exiles (discovered 2 exits: [*Min x2]) -8/Mines -8/Materials -7/Factory (discovered 4 exits: *Fac / Sto / *Low x2) -7/Waste -7/Factory -7/DSF -6/Factory (discovered 5 exits: Low x2 / Ext x2 / Gar) -6/Garrison (discovered 3 exits: *Fac x3) -6/Factory History --------- Turn | Location | Event 19 | -11/Scrapyard | Discovered new exit (range 16) 110 | -11/Scrapyard | Entered Materials 189 | -10/Materials | Discovered new exit (range 16) 318 | -10/Materials | Build established: Mutant 361 | -10/Materials | Discovered new exit (range 9) 497 | -10/Materials | Discovered new exit (range 13) 663 | -10/Materials | Discovered new exit (range 4) 912 | -10/Materials | Discovered new exit (range 16) 1085 | -10/Materials | Entered another Materials area 1085 | -9/Materials | Evolved 2 slots: Propulsion x1, Utility x1 1633 | -9/Materials | Discovered new exit (range 16) 2198 | -9/Materials | Central database locked down 2401 | -9/Materials | Entered Mines 2442 | -9/Mines | Assisted by bots powering up and referring to "LRC-V3" 2519 | -9/Mines | Received a Rocket Launcher from a helpful Derelict 2549 | -9/Mines | Discovered new exit (range 14) 2560 | -9/Mines | Discovered new exit (range 13) 2726 | -9/Mines | Identified exit to Exiles 2755 | -9/Mines | Deemed a non-threat by the Exiles lab entrance 2762 | -9/Mines | Entered Exiles 2762 | -9/Exiles | Accompanied by 2 allies 2791 | -9/Exiles | Discovered new exit (range 15) 2810 | -9/Exiles | Met 8R-AWN 2842 | -9/Exiles | Met EX-HEX 2892 | -9/Exiles | Met EX-BIN 2918 | -9/Exiles | Met EX-DEC 2924 | -9/Exiles | Learned location of Zion (-7) 3004 | -9/Exiles | Aligned with FarCom system 3006 | -9/Exiles | Given EX-Vault access code 3049 | -9/Exiles | Opened EX-Vault 3141 | -9/Exiles | Found Potential Leg 3143 | -9/Exiles | Found Potential Leg 3166 | -9/Exiles | Warned to stay clear of 0b10 Research branches 3287 | -9/Exiles | Discovered new exit (range 14) 3297 | -9/Exiles | Left Exiles lab with Potential Leg 3297 | -9/Exiles | Entered Mines 3407 | -8/Mines | Discovered new exit (range 5) 3411 | -8/Mines | Entered Materials 3411 | -8/Materials | Evolved 2 slots: Utility x2 3740 | -8/Materials | Discovered new exit (range 4) 3741 | -8/Materials | Entered Factory 3741 | -7/Factory | Evolved 2 slots: Utility x1, Weapon x1 3885 | -7/Factory | Garrison activated, responded to threat 4443 | -7/Factory | Discovered new exit (range 15) 4505 | -7/Factory | Identified exit to Storage 4505 | -7/Factory | Identified exit to Lower Caves 4563 | -7/Factory | Repaired Ion Cannon+ 4652 | -7/Factory | Repaired Ion Cannon+ 4685 | -7/Factory | Repaired Rocket Launcher 4718 | -7/Factory | Repaired Med. Armor Plating 4813 | -7/Factory | Discovered new exit (range 14) 4997 | -7/Factory | Sucked down chute 4997 | -7/Factory | Entered Waste 5013 | -7/Waste | Spotted C-40 Crusher 5021 | -7/Waste | Spotted C-40 Crusher 5023 | -7/Waste | Spotted C-40 Crusher 5028 | -7/Waste | Spotted C-40 Crusher 5031 | -7/Waste | Crushed by Compactor (1 part destroyed, 2 dropped) 5062 | -7/Waste | Warlord forces began an assault 5112 | -7/Waste | Lost 6 allies 5176 | -7/Waste | Spotted C-40 Crusher 5186 | -7/Waste | Spotted C-40 Crusher 5191 | -7/Waste | Destroyed C-40 Crusher 5198 | -7/Waste | Allies destroyed C-40 Crusher 5218 | -7/Waste | Discovered new exit (range 16) 5258 | -7/Waste | Entered Factory 5258 | -7/Factory | Accompanied by 13 allies 5260 | -7/Factory | Build established: Gunner 5261 | -7/Factory | Identified exit to DSF 5261 | -7/Factory | Entered DSF 5261 | -7/DSF | Accompanied by 13 allies 5287 | -7/DSF | Additional patrols routed to DSF 5363 | -7/DSF | Discovered new exit (range 16) 5477 | -7/DSF | Sterilization system engaged 5496 | -7/DSF | Entered Factory 5496 | -6/Factory | Accompanied by 12 allies 5496 | -6/Factory | Evolved 2 slots: Power x1, Utility x1 5647 | -6/Factory | Lost 6 allies 5731 | -6/Factory | Identified exit to Lower Caves 5731 | -6/Factory | Identified exit to Extension 5855 | -6/Factory | Repaired Broken Hvy. Proton Cannon 5915 | -6/Factory | Build established: Hacker-Mutant 5945 | -6/Factory | Repaired Hvy. Proton Cannon 6080 | -6/Factory | Garrison activated, responded to threat 6133 | -6/Factory | Lost 6 allies 6174 | -6/Factory | Identified exit to Garrison 6174 | -6/Factory | Entered Garrison 6218 | -6/Garrison | Discovered new exit (range 12) 6239 | -6/Garrison | Attempted to access garrison exit controls, blocked by remote lockdown 6296 | -6/Garrison | Lost 4 parts (2p1u1w) 6556 | -6/Garrison | Triggered checkpoint 6899 | -6/Garrison | Lost 4 parts (4u) 7116 | -6/Garrison | Crushed by falling debris 7172 | -6/Garrison | Triggered checkpoint 7208 | -6/Garrison | Lost 3 allies 7316 | -6/Garrison | Discovered new exit (range 10) 7360 | -6/Garrison | Attempted to access garrison exit controls, blocked by remote lockdown 7411 | -6/Garrison | System corruption reached 10% 7414 | -6/Garrison | Core integrity fell below 50% 7456 | -6/Garrison | Lost 10 parts (2p4n2u2w) 7646 | -6/Garrison | Triggered checkpoint 7811 | -6/Garrison | Core integrity fell below 20% 8152 | -6/Garrison | Triggered checkpoint 8156 | -6/Garrison | Build established: Scavenger-Mutant 8173 | -6/Garrison | Learned Factory security intel 8332 | -6/Garrison | Lost 5 parts (3u2w) 8417 | -6/Garrison | Found Unknown Device 8417 | -6/Garrison | Identified Quantum Capacitor 8766 | -6/Garrison | Triggered checkpoint 8864 | -6/Garrison | Discovered new exit (range 12) 8953 | -6/Garrison | Heavy support dispatched to Factory 9002 | -6/Garrison | Entered Factory 9148 | -6/Factory | System corruption reached 30% 9352 | -6/Factory | First assault squad dispatched 9425 | -6/Factory | Destroyed by G-67 Veteran with Field Laser Last Messages --------------- 09321_ Dropped Lgt. Deuterium Engine. 09322_ Acquired Mic. Nuclear Core. 09324_ System corrupted: Energy discharge (-124). 09325_ Dropped Hrd. Medium Armor Plating. 09326_ Acquired Lgt. Deuterium Engine. 09338_ R-10 Processor collects Hrd. Medium Armor Plating. 09340_ System corrupted: Matter fused (-8). 09352_ ALERT: Unidentified disturbance in Zone 3R, assault force dispatched. 09358_ #1THLPEN/QBESODVU9UXUPYBVYBT4XZ 09385_ System corrupted: Matter fused (-5). 09386_ Acquired Prototype Energy Gun. 09386_ Identified Force Rifle. 09421_ C-45 Heavy ARC bursts open, deploying its payload. 09421_ G-67 Veteran unfolds itself. 09421_ L-41 Fighter unfolds itself. 09421_ G-50 Soldier unfolds itself. 09421_ E-15 Imp unfolds itself. 09421_ E-15 Imp destroyed. 09424_ Carbon-fiber Leg destroyed. Map ----- +----------------------------------------------------+ | ????????????????# #??????? | | ????????????????# #??????? | | ????????????????# ???????? | | ?????????######## ????????? | | ?????????# ??????????? | | ?????????# #???????????? | | ?????????# #???????????? | | ?????????# """ #???????????? | | ?????????# "Y" #???????????? | | ?????????+ " " #???????????? | | ?????????# #???????????? | | ?????????# #???????????? | | ?????????# #######???????????? | | ?????????# gg###???????????????? | | ?????????# g%!""#???????????????? | | ?????????# ""#???????????????? | | ?????????# G#???????????????? | | ?????????# ""#???????????????? | | ?????????# l ""#???????????????? | | ?######### ###?####??????????? | | ?# = #^ #####T ############ | | ?# !! #^ % | | ?# !! ! # ############### | | ?# # #?????????????? | | ?###+##+## #?????????????? | | ???# @ #?????????????? | | ???#+#######/##########?????????????? | | ???# #?????????????? | | ???# #?????????????? | | ???# #?????????????? | | ???# #?????????????? | | ???# """ """ """ """ #?????????????? | | ???# """ """ """ """ #?????????????? | | ???# """ """ """ """ #?????????????? | | ???# ????????????????? | | ???#############?###????????????????? | | | | | | | | | | | | | | | | | | | | | | | | | | | | | +----------------------------------------------------+ Best States ------------- Heat Dissipation 93 Energy Generation 29 Energy Capacity 830 Matter Stores 300 Matter Capacity 300 Sight Range 22 Terrain Scan Density 10 Additional Mass Support 9 Base Temperature (-) 200 Armor Coverage 300 Evasion (%) 66 Targeting Accuracy 16 Recoil Reduction 2 Offensive Hacking 10 Defensive Hacking 12 Authchip Count 3 Item Schematics ----------------- Med. Storage Unit | -9/Materials | Scanalyzed Robot Schematics ------------------ None Fabricated ------------ Nothing Repaired ---------- Ion Cannon | 16% | -7/Factory Ion Cannon | 22% | -7/Factory Rocket Launcher | 21% | -7/Factory Med. Armor Plating | 46% | -7/Factory Hvy. Proton Cannon | 43% | -6/Factory | Broken Hvy. Proton Cannon | 72% | -6/Factory Studied --------- Aluminum Leg | -9/Materials | Hacked Particle Cannon | -9/Materials | Hacked Ion Engine | -9/Materials | Hacked Ion Cannon | -8/Materials | Hacked Alien Tech Used ----------------- None Achievements -------------- DIY Cooler Hot Goods Spot Them First Sprinter Well Done Challenges ------------ None Game ------ Seed ProtonQuantumLance Manual? 0 Play Time 01:44:13 Cumulative 86.7 hours Start 2026.04.26 @ 13:01:59 End 2026.04.26 @ 14:51:32 Sessions 2 Manual Loads 0 Difficulty Rogue Special Mode None Game No. 85 Rogue 85 Adventurer 0 Explorer 0 Win Type - Total 4 Types 2/0/1/1/0/0/0/0/0/0 Lore% 59 Gallery% 48 Achievement% 36 Wizard Run 0 Options --------- Layout 0 ASCII 0 Keyboard 1 Movement Numpad Keybinds 0 Fullscreen 2 Font 24/Smallcaps Map View 76x56 Zoom Use 0% Tactical HUD 1 Map Filters NONE Filters NONE Steam 1 RUN: 75c5f298-5d72-4ce7-9349-e24319acdc0d